Cogmind - Beta 16 @@@ ROGUE MODE // 2025.11.12 @ 14:05:16 Player: Zane Result: Destroyed by TA-72S(R) with Subdweller Machine Gun Performance ------------- Evolutions (0) 0 Regions Visited (2) 400 Robots Destroyed (16) 80 Value Destroyed (444) 444 Prototype IDs (2) 40 Alien Tech Used (0) 0 Bonus (0) 0 TOTAL SCORE: 964 Bonus ------- None Cogmind --------- Core Integrity 0/250 Matter 271/300 Energy 200/200 System Corruption 0% Temperature Cool (9) Movement Treading (160) Location -10/Subcaves Parts ------- > --- POWER (1) -------- Subdweller Power Source > --- PROPULSION (2) --- Light Treads Light Treads > --- UTILITY (2) ------ Small Storage Unit Targeting Computer > --- WEAPON (2) ------- Small Laser Subdweller Machine Gun > --- INVENTORY (8) ---- Subdweller Power Source Subdweller Optics Scrap Shield Barrage Gun Subdweller Shrapnel Launcher Peak State ------------ > --- POWER ------------ Subdweller Power Source > --- PROPULSION ------- Light Treads Light Treads > --- UTILITY ---------- Small Storage Unit Medium Armor Plating > --- WEAPON ----------- Small Laser Subdweller Machine Gun > --- INVENTORY -------- Subdweller Power Source Light Nuclear Core Light Treads Targeting Computer Mining Laser Scrap Shield Fragment Scrap Shield Fragment [Rating: 11] Favorites ----------- Power Light Ion Engine Engine Light Ion Engine Power Core Light Nuclear Core Propulsion Light Treads Treads Light Treads Leg Aluminum Leg Utility Small Storage Unit Device Seismic Detector Storage Small Storage Unit Processor Targeting Computer Protection Medium Armor Plating Weapon Medium Laser Energy Gun Medium Laser Ballistic Gun Light Assault Rifle Special Weapon Mining Laser Build | -11 -10 -10 ------- Run | Yrd Mat Sub Slots Evolved . | . . . Power . | . . . Propulsion . | . . . Utility . | . . . Weapon . | . . . Parts Attached 25 | 7 8 10 Power 5 | 1 2 2 Engine 4 | 1 1 2 Core 1 | . 1 . Reactor . | . . . Propulsion 6 | 2 2 2 Treads 4 | . 2 2 Leg 2 | 2 . . Wheel . | . . . Hover . | . . . Flight . | . . . Utility 5 | 2 1 2 Device 1 | 1 . . Storage 1 | 1 . . Processor 1 | . . 1 Hackware . | . . . Protection 2 | . 1 1 Artifact . | . . . Weapon 9 | 2 3 4 Energy Gun 5 | 2 2 1 Energy Cannon . | . . . Ballistic Gun 3 | . . 3 Ballistic Cannon . | . . . Launcher . | . . . Special Weapon 1 | . 1 . Impact Weapon . | . . . Slashing Weapon . | . . . Piercing Weapon . | . . . Special Melee Weapon . | . . . Unidentified Prototypes . | . . . Parts Lost 10 | . . 10 Power 2 | . . 2 Propulsion 2 | . . 2 Utility 3 | . . 3 Weapon 3 | . . 3 Highest Loss Streak 3 | . . 3 To Critical Strikes . | . . . Average Backups 6 | 3 7 7 Power 1 | . 1 1 Propulsion 1 | 1 1 1 Utility 2 | . 2 2 Weapon 1 | . 1 1 Tool/Special . | . . . Unused Backups 6 | . 1 5 Power 1 | . . 1 Propulsion 1 | . 1 . Utility 2 | . . 2 Weapon 2 | . . 2 Tool/Special . | . . . Average Slot Usage (%) 94 | . 97 90 Engine 13 | . 14 13 Treads 20 | . 16 26 Leg 5 | . 9 . Device 2 | . 3 1 Storage 14 | . 14 14 Processor 1 | . . 4 Protection 7 | . 10 2 Energy Gun 21 | . 25 15 Ballistic Gun 4 | . . 11 Peak Build Rating 11 | 7 10 11 Average Rating 7 | 5 8 8 On Entrance 5 | . 7 9 Avg Prop Armor Cover (%) 9 | . 7 11 Naked Turns . | . . . Heaviest Build 22 | 13 19 22 Greatest Support 40 | 20 40 40 Greatest Overweight (x) 5 | 1 5 1 Average Overweight (x) . | . . . Largest Inventory Capacity 8 | 8 8 8 Average Capacity 7 | 7 8 8 Most Carried 8 | 4 8 8 Average Carried 6 | 3 7 7 Final Capacity 8 | 8 8 8 Final Carried 8 | 4 8 6 Class Distribution -------------------- 100% | Mutant Dominant Class ---------------- Mutant | -10/Materials Mutant | -10/Subcaves Resources | -11 -10 -10 ----------- Run | Yrd Mat Sub Matter Collected 585 | 260 185 140 Remotely . | . . . Salvage Created 600 | 80 225 295 Parts 38 | 7 8 23 Haulers Intercepted 1 | . 1 . Recyclers Shooed . | . . . Parts Field Recycled . | . . . Retrieved Matter . | . . . Parts Self-Destructed 7 | . . 7 Prevented . | . . . Parts Restored . | . . . Kills | -11 -10 -10 ------- Run | Yrd Mat Sub Combat Hostiles Destroyed 12 | . 4 8 Guns 12 | . 4 8 Classes Destroyed 6 | 2 2 2 Tunneler 2 | 2 . . Hauler 1 | . 1 . Recycler 1 | 1 . . Swarmer 2 | . . 2 Grunt 4 | . 4 . Subdweller 6 | . . 6 Best Kill Streak 3 | 3 2 3 Combat Bots Only 3 | . 2 3 Max Kills in Single Turn 1 | 1 1 1 Gunslinging . | . . . Exploded . | . . . Melee . | . . . Uniques/NPCs Destroyed . | . . . Combat | -11 -10 -10 -------- Run | Yrd Mat Sub Hostile Shots Fired 90 | . 24 66 Missed 18 | . 5 13 Hits 72 | . 19 53 Projectile 72 | . 19 53 AOE 1 | . . 1 Damage Taken 1370 | . 294 1076 Core 264 | . 58 206 Absorbed by Shields . | . . . Core Remaining (%) 100 | 100 . . Volleys Fired 65 | 11 24 30 Largest 2 | 2 2 2 Hottest 100 | 100 100 90 Shots Fired 113 | 22 45 46 Gun 110 | 22 42 46 Cannon . | . . . Launcher . | . . . Special 3 | . 3 . Kinetic 17 | . . 17 Thermal 96 | 22 45 29 Explosive . | . . . Electromagnetic . | . . . Robot Hit Streak 10 | 6 7 10 Robot Miss Streak 4 | 2 2 4 Penetration Max . | . . . Secondary Targets 2 | . 1 1 Max Gunslinging Chain 1 | . 1 1 Shots Hit Robots 81 | 15 29 37 Core Hits 33 | 4 12 17 Critical Kills . | . . . Critical Parts Destroyed . | . . . Critical Strikes 4 | 2 2 . Burn 4 | 2 2 . Melee Attacks . | . . . Impact . | . . . Slashing . | . . . Piercing . | . . . Sneak Attacks . | . . . Combat Hostiles . | . . . Follow-up Attacks . | . . . Damage Inflicted 1071 | 188 379 504 Guns 1066 | 188 374 504 Cannons . | . . . Explosions . | . . . Melee . | . . . Ramming 5 | . 5 . Kinetic 272 | . . 272 Thermal 794 | 188 374 232 Explosive . | . . . Electromagnetic . | . . . Impact . | . . . Slashing . | . . . Piercing . | . . . Highest Corruption . | . . . Average Corruption . | . . . Corruption Purged . | . . . Corruption Blocked . | . . . Overload Shots . | . . . Overflow Damage . | . . . Projectiles . | . . . Explosions . | . . . Melee . | . . . Knockbacks . | . . . Impact . | . . . Kinetic . | . . . Secondary . | . . . Self-Inflicted Damage 1 | . 1 . Shots . | . . . Rammed 2 | . 2 . Targets Rammed 2 | . 2 . Kicked . | . . . Crushed . | . . . Highest Temperature 577 | 156 577 . Average Temperature 148 | 56 184 . Received Heat Transfer 318 | . 150 168 Effects 16 | . 16 . Shutdowns 3 | . 3 . Energy Bleed 3 | . 3 . Interference 1 | . 1 . Matter Decay 4 | . 4 . Short Circuit 1 | . 1 . Damage (minor) 1 | . 1 . Damage (major) 2 | . 2 . Damage (core) 1 | . 1 . Siege Activations . | . . . Martial Activations . | . . . Shielding Activations . | . . . Robots Disrupted . | . . . Combat Hostiles . | . . . Robots Corrupted . | . . . Combat Hostiles . | . . . Parts Fried . | . . . Impact Corruptions . | . . . Robots Melted . | . . . Combat Hostiles . | . . . Parts Melted 6 | 1 4 1 Heat Transferred 2522 | 703 1258 561 Parts Sabotaged . | . . . Parts Stolen . | . . . Parts Stripped . | . . . Power Chain Reactions . | . . . Alert | -11 -10 -10 ------- Run | Yrd Mat Sub Maximum Alert Level . | . . . Low Security (%) 100 | 100 100 . Level 1 . | . . . Level 2 . | . . . Level 3 . | . . . Level 4 . | . . . Level 5 . | . . . High Security . | . . . Max Security . | . . . Peak Influence 62 | 5 62 . Initial . | . . . Average 10 | 1 12 . Influence Increases 238 | 15 173 50 Destroy 0b10 Robot/C 120 | . 80 40 Destroy 0b10 Robot/NC 20 | 15 5 . Destroy Leader 32 | . 22 10 Successful Hack 33 | . 33 . Destroy Structure 3 | . 3 . Partial Spotted 15 | . 15 . Lose Combat Pursuer 15 | . 15 . Influence Decreases 238 | 15 173 50 Time Decay 238 | 15 173 50 Squads Dispatched . | . . . Investigation . | . . . Extermination . | . . . Reinforcement . | . . . Assault . | . . . Garrison . | . . . Intercept . | . . . Searches Triggered . | . . . Construction Impeded . | . . . Haulers Reinforced . | . . . Active Scanning Responses . | . . . Cargo Convoy Interrupts . | . . . Stealth | -11 -10 -10 --------- Run | Yrd Mat Sub Distress Signals 1 | . 1 . Communications Jammed . | . . . Distress Signals . | . . . Times Spotted 19 | . 9 10 Peak Tracking Total 4 | . 3 4 Tactical Retreats 2 | . 1 1 Traps | -11 -10 -10 ------- Run | Yrd Mat Sub Traps Triggered 3 | . 3 . Indirectly . | . . . Trap Hack Attempts . | . . . Triggered . | . . . Disarmed . | . . . Reprogrammed . | . . . Reused . | . . . Traps Extracted . | . . . Installed . | . . . Triggered . | . . . Machines | -11 -10 -10 ---------- Run | Yrd Mat Sub Machines Disabled . | . . . Max in Single Turn . | . . . Machines Repaired . | . . . Machines Dismantled . | . . . Machines Sabotaged . | . . . Overloaded Fab Kills . | . . . Hacking | -11 -10 -10 --------- Run | Yrd Mat Sub Machines Accessed 8 | . 7 1 Terminals 5 | . 5 . Fabricators . | . . . Repair Stations . | . . . Recycling Units 2 | . 2 . Scanalyzers . | . . . Garrison Access . | . . . Total Hacks 31 | . 26 5 Successful 22 | . 17 5 Failed 9 | . 9 . Catastrophic 3 | . 3 . Database Lockouts . | . . . Manual 16 | . 16 . Terminals 17 | . 17 . Fabricators . | . . . Repair Stations . | . . . Recycling Units 9 | . 9 . Scanalyzers . | . . . Garrison Access . | . . . Terminal Hacks 10 | . 5 5 Record 5 | . . 5 Part Schematic 2 | . 2 . Prototype ID Bank 1 | . 1 . Locate Traps 1 | . 1 . Zone Layout 1 | . 1 . Fabricator Hacks . | . . . Repair Station Hacks . | . . . Recycling Unit Hacks 5 | . 5 . Process 1 | . 1 . Retrieve Matter 1 | . 1 . Retrieve Components 3 | . 3 . Scanalyzer . | . . . Garrison Access Hacks . | . . . Unauthorized Hacks 7 | . 7 . Terminals 5 | . 5 . Botnet 5 | . 5 . Fabricators . | . . . Repair Stations . | . . . Recycling Units 2 | . 2 . Monitor 1 | . 1 . Recyclers 1 | . 1 . Scanalyzers . | . . . Garrison Access . | . . . Data Cores Recovered . | . . . Used . | . . . Hacking Detections 6 | . 6 . Full Trace Events 1 | . 1 . Feedback Events . | . . . Feedback Blocked . | . . . Robot Schematics Acquired . | . . . Robots Built . | . . . Authchips . | . . . Time . | . . . Total Robot Build Rating . | . . . Part Schematics Acquired 2 | . 2 . Parts Built . | . . . Authchips . | . . . Time . | . . . Total Part Build Rating . | . . . Part Studies Acquired . | . . . Parts Repaired . | . . . Time . | . . . Parts Recycled . | . . . Recycled Matter 95 | . 95 . Retrieved Matter 102 | . 102 . Retrieved Components 18 | . 18 . Parts Scanalyzed . | . . . Part Schematics Acquired . | . . . Parts Damaged . | . . . Bothacking | -11 -10 -10 ------------ Run | Yrd Mat Sub Used RIF Installer . | . . . Robots Hacked . | . . . Non-combat . | . . . Combat . | . . . Robot Hacks Applied . | . . . Relay Couplers Released . | . . . Fabnet Peak Effective % . | . . . Robots Rewired . | . . . Allies Hacked . | . . . Hacks Repelled . | . . . Allies | -11 -10 -10 -------- Run | Yrd Mat Sub Total Allies . | . . . Largest Group . | . . . Highest-Rated Group . | . . . Highest-Rated Ally . | . . . Total Orders . | . . . Ally Attacks . | . . . Total Damage . | . . . Kills . | . . . Allies Corrupted . | . . . Allies Melted . | . . . Intel | -11 -10 -10 ------- Run | Yrd Mat Sub Active Infowar (turns) 243 | 19 161 63 Seismic 243 | 19 161 63 Robot Analysis Total . | . . . Derelict Logs Recovered . | . . . Drone Launches . | . . . Drone Recoveries . | . . . Exploration | -11 -10 -10 ------------- Run | Yrd Mat Sub Turns Passed 1392 | 170 725 497 Spaces Moved 666 | 98 337 231 Core 17 | 6 11 . Treads 426 | . 195 231 Legs 223 | 92 131 . Wheels . | . . . Hover . | . . . Flight . | . . . Fastest Speed 50 | 50 120 160 Average Speed 148 | 119 148 161 Slowest Speed 300 | 190 300 240 Overloaded Moves . | . . . Propulsion Burnouts . | . . . Robots Hopped . | . . . Potential Cave-ins . | . . . Cave-ins Triggered . | . . . Exploration Rate (%) 24 | 5 50 19 Regions Visited 2 Branch Regions 1 Pre-discovered Areas 1 | . . 1 Known Exits Taken . | . . . Unknown Exits Taken 2 | 1 1 . Scrap Searched 4 | . . 4 Spaces Dug 3 | . 3 . Terrain Destroyed 3 | . 3 . Melee . | . . . Projectile 3 | . 3 . AOE . | . . . Terrain Rammed . | . . . Walls Destroyed . | . . . Machines Disabled . | . . . Actions | -11 -10 -10 --------- Run | Yrd Mat Sub Total 942 | 126 505 311 Wait 136 | 6 108 22 Move 664 | 97 336 231 Hop . | . . . Pick Up 25 | 5 10 10 Fast Attach 12 | 6 5 1 Attach 10 | 1 . 9 Detach . | . . . Swap 14 | . 11 3 Drop 14 | . 9 5 Fire 65 | 11 24 30 Melee . | . . . Ram 1 | . 1 . Kick . | . . . Crush 1 | . 1 . Escape Stasis . | . . . Rewire . | . . . Trap . | . . . Miscellaneous . | . . . Route ------- -11/Scrapyard -10/Materials (discovered 4 exits: [*Mat] / [*Min x2] / *Sub) -10/Subcaves (discovered 3 exits: *Mat x2 / Rec) History --------- Turn | Location | Event 8 | -11/Scrapyard | Discovered new exit (range 15) 171 | -11/Scrapyard | Entered Materials 189 | -10/Materials | Discovered new exit (range 10) 214 | -10/Materials | Discovered new exit (range 3) 314 | -10/Materials | Build established: Mutant 471 | -10/Materials | Discovered new exit (range 12) 628 | -10/Materials | Discovered new exit (range 3) 896 | -10/Materials | Entered Subcaves 897 | -10/Subcaves | Approached by a straggling Scientist 907 | -10/Subcaves | Ambushed by Subdwellers from Twisted Machinery 992 | -10/Subcaves | Lost 3 parts (1u2w) 1188 | -10/Subcaves | Lost 3 parts (1p1n1u) 1197 | -10/Subcaves | Core integrity fell below 50% 1245 | -10/Subcaves | Lost 3 parts (1n1u1w) 1353 | -10/Subcaves | Discovered new exit (range 12) 1359 | -10/Subcaves | Visited Clippyterm 1371 | -10/Subcaves | Identified exit to Materials 1371 | -10/Subcaves | Identified exit to Recycling 1371 | -10/Subcaves | Learned location of Deep Caves (-6) 1392 | -10/Subcaves | Core integrity fell below 20% 1393 | -10/Subcaves | Destroyed by TA-72S(R) with Subdweller Machine Gun Last Messages --------------- still manages to suggest unhelpful sample queries and responses. --DD-NU8 >>Record "^q" It looks like you're in search of a way out of here, would you like help? Loading 2 Subcaves exits... >>Record "Some Assembly Required" It looks like you want to find the nearest Z-Facility, would you like help? World map updated: -6/Deep Caves. >>Record "SUBCON Basin" It looks like you want to play with dangerous UFD tech. While I can't recommend taking subatomizers out of the Subcaves, I can warn that doing so is a one-way ticket to summoning unimaginable chaos on any area not hardened against them. That includes... just about anywhere. 01387_ Clippyterm disabled. 01391_ Machine disabled. Map ----- +----------------------------------------------------+ | # # ##??????# ???????## ##???????????? | | # ###?????### ??????# # # #?????????? | | ## #????? ?????# #?????????? | | ?# ## ###?????? #????# ## ##????????? | | ## ###?????????# #???## ## ##### ? | | # #???????????# ??# ? | | ##???????????# ### ? | | ##????????????# #### ? | | %% #?????????????# ####???# ?? | | ??????## ##??????# ??? | | ##### #??????#### ###????????????? | | ????# ### #????????### ####?????????? | | ????## #???? ###??????????### ##????????? | | ?????## ##????????????????????# #????????? | | ???????##?????????????????????# #????????? | | ??????????????????????????????# ###????????? | | ??????????????????????????????# ##??????????? | | ??????????????????????????????## ##???????????? | | ???????????????????????????????## ##????????????? | | "??????????????????????????????# ##????????????? | | " ??????????????????????????##### #????????????? | | ""????????????????????#####?# ### #????????????? | | #?????????????????????#"""### ## ##????????????? | | #?????????????????????#"" ## #?????????????? | | ??????????????????????# RR